Workbook

Sheet Contents
F2: =Workbook.Title -> UK MNO ROCE Calcs for MSR Statement
A4: Information
A6: Title | B6: UK MNO ROCE Calcs for MSR Statement
A7: Objective | B7: UK MNO ROCE Calculations to be used in the MSR
A8: Version | B8: 1
A9: Status | B9: Approved for release
A10: Author | B10: Sunjit Kamboj
A12: Confidentiality status | B12: Non-confidential
A14: Do you want? | B14: FALSE
B15: FALSE
B16: TRUE
A18: Contents
A20: Sheet | B20: Description | D20: Status | E20: Notes
A21: Contents | B21: This contents sheet
A23: Actual model sheets
A24: Assets and capex | B24: Asset and capex data from Companies House financial statements | D24: Approved for release
A25: Profitability | B25: Profitability data from Companies House financial statements | D25: Approved for release
A26: CPI Data | B26: CPI data taken from ONS website | D26: Approved for release
A27: Spectrum band valuation | B27: Recent valuation of spectrum from auctions and ALF decisions | D27: Approved for release
A28: Spectrum valuation | B28: Calculation of spectrum value by MNO | D28: Approved for release
A29: ROCE Calculations | B29: ROCE calculation excluding 5G spectrum | D29: Approved for release
A30: ROCE calculation inc 5G | B30: ROCE calculation including 5G spectrum | D30: Approved for release
A32: Terms and conditions
A33: The terms and conditions on which OFCOM is making available the model are set out below. The UK MNO ROCE Calculations for the Mobile Strategy Review provided has been developed to understand how ROCE has evolved for UK MNOs over time. While you may freely use the Model for the purposes for which it is provided, as set out in any accompanying model documentation, OFCOM does not guarantee that the Model will function when used in any modified way. No representation or warranty is given as to the accuracy, completeness or correctness of the provided Model and it is provided 'as is'. It is provided without any representation or endorsement made and without warranty of any kind, whether express or implied, including but not limited to the implied warranties of satisfactory quality, fitness for a particular purpose, non-infringement, compatibility, security and accuracy. OFCOM does not accept any responsibility for any loss, disruption or damage to your data or your computer system which may occur whilst using the Model or material derived from the Model. OFCOM does not warrant that the functions contained in the Model will be uninterrupted or error free. Also, OFCOM does not warrant that defects will be corrected, or that the Model provided is free of viruses. In no event will OFCOM be liable for any loss or damage including, without limitation, indirect or consequential loss or damage, or any loss or damages whatsoever arising from use or loss of use of, data or profits arising out of or in connection with the use or otherwise of the provided Model. By using this Model, you agree to the above.

Sheet Version History (hidden)
D2: Version Histrory
A4: History
A6: Version | B6: Date | C6: Author | D6: Details of modifications introduced

Sheet Quality Assurance (hidden)
D2: Quality Assurance
A4: Workbook QA
A6: Verified by | B6: Enter name of reviewer
A7: Date | B7: Enter date review completed
A8: Version | B8: Enter version of workbook checked
A9: Status | B9: QA completed but issues to resolve
A11: Type of QA | B11: Self-check by author | C11: Yes
B12: Internal QA - informal | C12: Yes
B13: Internal QA - formal | C13: Yes
B14: External QA | C14: Yes
A16: Objective of QA | B16: Check input data | C16: Yes
B17: Check calculations | C17: Yes
B18: Check methodology | C18: Yes
B19: Check implementation | C19: Yes
A21: QA results delivery format | B21: Report | C21: Yes
B22: Presentation | C22: Yes
B23: Notes to spreadsheet | C23: Yes
A25: QA notes
A27: Sheet | B27: Issue | C27: Details | D27: Status (issue resolved?)

Sheet Inputs>>>

Sheet Assets and Capex
A1: Assets and capex
A2: 2020 is either March 2021 or December 2020
A4: Vodafone | B4: VODAFONE LIMITED overview - Find and update company information - GOV.UK (company-information.service.gov.uk)
B5: 2016 | C5: 2017 | D5: 2018 | E5: 2019 | F5: 2020 | G5: 2021 | H5: Notes
A6: Goodwill | B6: 360 | C6: 360 | D6: 360 | E6: 360 | F6: 309.6 | G6: 309.6
A7: Licence fees | B7: 2438.9 | C7: 2047 | D7: 2004.1 | E7: 1589.2 | F7: 1155.9 | G7: 1022
A8: Software | B8: 430.5 | C8: 437.4 | D8: 430 | E8: 419.2 | F8: 431.2 | G8: 489.8
A9: Total intangibles | B9: =SUM(B6:B8) -> 3229.4 | C9: 2844.4 | D9: 2794.1 | E9: 2368.4 | F9: 1896.7 | G9: 1821.4
A10: Network infrastructure | B10: 2704.4 | C10: 2745.5 | D10: =2619.7 -> 2619.7 | E10: 2508 | F10: 1978 | G10: 1941.6
A11: Other | B11: =B12-B10 -> 527.7 | C11: 403.2 | D11: 421 | E11: 410.2 | F11: 315.7 | G11: 304.3
A12: Total tangible assets | B12: 3232.1 | C12: 3148.7 | D12: 3040.7 | E12: 2918.2 | F12: 2293.7 | G12: 2245.9
A13: Right to use assets | E13: 1047.1 | F13: 1675.3 | G13: 1465.5
A14: Total tangible assets including leases | B14: =B12+B13 -> 3232.1 | C14: 3148.7 | D14: 3040.7 | E14: 3965.3 | F14: 3969 | G14: 3711.4
A15: Post-employment benefits | B15: 44.4 | C15: 92.1 | D15: 81.4 | E15: 489.2 | F15: 50.9 | G15: 394.7
A16: Deferred tax asset | B16: 961.4 | C16: 841.9 | D16: 1014.3 | E16: 1124.2 | F16: 1336.2 | G16: 1634.7
A17: Investments | B17: 25.1 | C17: 25.1 | D17: 25.1 | E17: 25.1 | F17: 25.1 | G17: 25.1
A18: Other non-current assets | B18: =SUM(B15:B17) -> 1030.9 | C18: 959.1 | D18: 1120.8 | E18: 1638.5 | F18: 1412.2 | G18: 2054.5
A19: Non-current assets | B19: =B9+B14+B18 -> 7492.4 | C19: 6952.2 | D19: 6955.6 | E19: 7972.2 | F19: 7277.9 | G19: 7587.3
A20: Cash | B20: 19.8 | C20: 24.9 | D20: 32.5 | E20: 24.3 | F20: 10.2 | G20: 11.2
A21: Other | B21: =B22-B20 -> 3430.2 | C21: 3845.7 | D21: 3561.7 | E21: 3698.6 | F21: 5090.2 | G21: 4582.1
A22: Current assets | B22: 3450 | C22: 3870.6 | D22: 3594.2 | E22: 3722.9 | F22: 5100.4 | G22: 4593.3
A23: Current liabilities | B23: -4138.8 | C23: -4265.6 | D23: -4215.1 | E23: -4605.2 | F23: -4644.1 | G23: -4223.4
A24: Net current assets/(liabilities) | B24: =B22+B23 -> -688.8 | C24: -395 | D24: -620.9 | E24: -882.3 | F24: 456.3 | G24: 369.9
A27: Licence fees | D27: 359.2 | G27: 201
A28: Other intangibles | B28: 174.8 | C28: 209.1 | D28: =565.2-359.2 -> 206 | E28: 206.7 | F28: 206.6 | G28: 244.3
A29: Tangible | B29: 630.4 | C29: 583.1 | D29: 560 | E29: 476.6 | F29: 523.2 | G29: 481.1
A30: Capex | B30: =SUM(B27:B29) -> 805.2 | C30: 792.2 | D30: 1125.2 | E30: 683.3 | F30: 729.8 | G30: 926.4
A31: Capex less licence fees | B31: =B30-B27 -> 805.2 | C31: 792.2 | D31: 766 | E31: 683.3 | F31: 729.8 | G31: 725.4
A33: Spectrum reconciliation
A34: Gross book value of spectrum (opening) | B34: 6930.1 | C34: 6930.1 | D34: 6930.1 | E34: 7289.3 | F34: 7290.3 | G34: 7284.7
A35: Additions | B35: =B27 -> 0 | C35: =C27 -> 0 | D35: =D27 -> 359.2 | E35: =E27 -> 0 | F35: =F27 -> 0 | G35: 201
A36: Amortisation | B36: =Profitability!B10 -> 391.9 | C36: =Profitability!C10 -> 391.9 | D36: =Profitability!D10 -> 402.1 | E36: =Profitability!E10 -> 410.3 | F36: =Profitability!F10 -> 433.3 | G36: 334.9
A37: Net book value of spectrum (closing) | B37: =B7 -> 2438.9 | C37: 2047 | D37: 2004.1 | E37: 1589.2 | F37: 1155.9 | G37: 1022
A38: Estimated amortisation ex 5G | B38: =B36 -> 391.9 | C38: =C36 -> 391.9 | D38: =C38 -> 391.9 | E38: =D38 -> 391.9 | F38: =E38 -> 391.9 | G38: =F38 -> 391.9
B39: =B36-B38 -> 0 | C39: 0 | D39: 10.2 | E39: 18.4 | F39: 41.4 | G39: -57
A41: Telefonica | B41: O2 HOLDINGS LIMITED overview - Find and update company information - GOV.UK (company-information.service.gov.uk)
B42: 2016 | C42: 2017 | D42: 2018 | E42: 2019 | F42: 2020 | G42: 2021
A43: Goodwill | B43: 2377 | C43: 2377 | D43: 2377 | E43: 2377 | F43: 2377 | G43: 0
A44: Licences | B44: 1075 | C44: 930 | D44: 984 | E44: 1144 | F44: 1057 | G44: 1311
A45: Assets in the course of construction | B45: 87 | C45: 21 | D45: 338 | E45: 8 | F45: 30 | G45: 44
A46: Software | B46: 157 | C46: 207 | D46: 196 | E46: 215 | F46: 160 | G46: 156
A47: Total intangibles | B47: =SUM(B43:B46) -> 3696 | C47: 3535 | D47: 3895 | E47: 3744 | F47: 3624 | G47: 1511
A48: Plant and equipment | B48: 2472 | C48: 2541 | D48: 2678 | E48: 2828 | F48: 2952 | G48: 3228
A49: Right to use assets | E49: 612 | F49: 460 | G49: 614
A50: Total tangible assets including leases | B50: =B48+B49 -> 2472 | C50: 2541 | D50: 2678 | E50: 3440 | F50: 3412 | G50: 3842
A51: Trade and other recievables | B51: 267 | C51: 342 | D51: 237 | E51: 341 | F51: 250 | G51: 482
A52: Other financial assets | B52: 25 | C52: 9 | D52: 12 | E52: 57 | F52: 63 | G52: 65
A53: Retirement benefit asset | B53: 0 | C53: 0 | D53: 19 | E53: 0 | F53: 35 | G53: 249
A54: Investment in JV | B54: 5 | C54: 6 | D54: 7 | E54: 8 | F54: 9 | G54: 14
A55: Deferred tax assets | B55: 0 | C55: 0 | D55: 0 | E55: 7 | F55: 4 | G55: 0
A56: Other non current assets | B56: =SUM(B51:B55) -> 297 | C56: 357 | D56: 275 | E56: 413 | F56: 361 | G56: 810
A57: Non-current assets | B57: =+B47+B50+B56 -> 6465 | C57: 6433 | D57: 6848 | E57: 7597 | F57: 7397 | G57: 6163
A58: Cash | B58: 161 | C58: 172 | D58: 315 | E58: 305 | F58: 164 | G58: 33
A59: Inventories | B59: 89 | C59: 109 | D59: 98 | E59: 125 | F59: 127 | G59: 133
A60: Other financial assets | B60: 70 | C60: 52 | D60: 71 | E60: 71 | F60: 61 | G60: 84
A61: Other | B61: =B62-B58-B59-B60 -> 1371 | C61: =C62-C58-C59-C60 -> 1498 | D61: =D62-D58-D59-D60 -> 1885 | E61: =E62-E58-E59-E60 -> 1704 | F61: =F62-F58-F59-F60 -> 1732 | G61: 2263
A62: Current assets | B62: 1691 | C62: 1831 | D62: 2369 | E62: 2205 | F62: 2084 | G62: =SUM(G58:G61) -> 2513
A63: Current liabilities | B63: -2979 | C63: -3797 | D63: -2866 | E63: -2930 | F63: -2668 | G63: -2824
A64: Net current assets/(liabilities) | B64: =B62+B63 -> -1288 | C64: -1966 | D64: -497 | E64: -725 | F64: -584 | G64: -311
A67: Licence fees | D67: 206 | E67: 318 | F67: 84 | G67: 448
A68: Other intangibles | B68: 145 | C68: 95 | D68: 417 | E68: 117 | F68: 157 | G68: 584
A69: Tangible | B69: 633 | C69: 609 | D69: 712 | E69: 686 | F69: 665 | G69: 845
A70: Capex | B70: =SUM(B67:B69) -> 778 | C70: 704 | D70: 1335 | E70: 1121 | F70: 906 | G70: 1877 | H70: Capex not taken from CF statement but from fixed asset disclosures
A71: Capex less licence fees | B71: =B70-B67 -> 778 | C71: 704 | D71: 1129 | E71: 803 | F71: 822 | G71: 1429
A73: Spectrum reconciliation
A74: Gross book value of spectrum (opening) | B74: 4641 | C74: 4641 | D74: 4641 | E74: 4847 | F74: 5165 | G74: 5248
A75: Additions | B75: =B67 -> 0 | C75: =C67 -> 0 | D75: =D67 -> 206 | E75: =E67 -> 318 | F75: =F67 -> 84 | G75: 448
A76: Amortisation | B76: =Profitability!B18 -> 145 | C76: =Profitability!C18 -> 145 | D76: =Profitability!D18 -> 152 | E76: =Profitability!E18 -> 158 | F76: =Profitability!F18 -> 171 | G76: 193
A77: Net book value of spectrum (closing) | B77: =B44 -> 1075 | C77: 930 | D77: 984 | E77: 1144 | F77: 1057 | G77: 1311
A78: Estimated amortisation ex 5G | B78: =B76 -> 145 | C78: =C76 -> 145 | D78: =C78 -> 145 | E78: =D78 -> 145 | F78: =E78 -> 145 | G78: =F78 -> 145
A79: Add back amortisation | D79: =D76-D78 -> 7 | E79: =E76-E78 -> 13 | F79: =F76-F78 -> 26 | G79: =G76-G78 -> 48
A81: Hutchison | B81: HUTCHISON 3G UK LIMITED overview - Find and update company information - GOV.UK (company-information.service.gov.uk)
B82: 2016 | C82: 2017 | D82: 2018 | E82: 2019 | F82: 2020 | G82: 2021
A83: Licences | B83: 2980.248 | C83: 2982.248 | D83: 3150.042 | E83: 3150.042 | F83: 3150 | G83: 3430.067
A84: Access Rights | B84: 59.762 | C84: 44.821 | D84: 29.88 | E84: 32.539 | F84: 17.599 | G84: 60.299
A85: Customer acquisition costs | B85: 0 | C85: 0 | D85: 7.897 | E85: 3.154 | F85: 0 | G85: 0
A86: Software | B86: 155.936 | C86: 185.043 | D86: 181.887 | E86: 226.278 | F86: 497.668 | G86: 615.168
A87: Total intangibles | B87: =SUM(B83:B86) -> 3195.946 | C87: 3212.112 | D87: 3369.706 | E87: 3412.013 | F87: 3665.267 | G87: 4105.534
A88: Network infrastructure | B88: 1315.53 | C88: 1365.108 | D88: 1301.781 | E88: 1217.067 | F88: 1223.398 | G88: 1242.247
A89: Other | B89: =B90-B88 -> 226.94 | C89: 275.541 | D89: 467.099 | E89: 558.399 | F89: 620.582 | G89: 597.655
A90: Total tangible assets | B90: 1542.47 | C90: 1640.649 | D90: 1768.88 | E90: 1775.466 | F90: 1843.98 | G90: 1839.902
A91: Right to use assets | E91: 602.577 | F91: 590.469 | G91: 713.024
A92: Total tangible assets including leases | B92: =B90+B91 -> 1542.47 | C92: 1640.649 | D92: 1768.88 | E92: 2378.043 | F92: 2434.449 | G92: 2552.926
A93: Other non current assets | B93: 1 | C93: 292.519 | D93: 292.519 | E93: 292.519 | F93: 292.519 | G93: 292.519
A94: Non-current assets | B94: =B92+B87+B93 -> 4739.416 | C94: 5145.28 | D94: 5431.105 | E94: 6082.575 | F94: 6392.235 | G94: 6950.979
A95: Cash | B95: 220 | C95: 194.878 | D95: 212.42 | E95: 232.001 | F95: 82.773 | G95: 57.984
A96: Deferred tax assets | B96: 0 | C96: 884.382 | D96: 880.604 | E96: 797.566 | F96: 846.869 | G96: 1057.412
A97: Other | B97: =B98-B95-B96 -> 1998 | C97: =C98-C95-C96 -> 1343.468 | D97: =D98-D95-D96 -> 1173.899 | E97: =E98-E95-E96 -> 1529.816 | F97: =F98-F95-F96 -> 1574.651 | G97: =G98-G96-G95 -> 3207.948
A98: Current assets | B98: 2218 | C98: 2422.728 | D98: 2266.923 | E98: 2559.383 | F98: 2504.293 | G98: 4323.344
A99: Current liabilities | B99: -423 | C99: -660.068 | D99: -752.904 | E99: -951.583 | F99: -1124.739 | G99: -2040.275
A100: Net current assets/(liabilities) | B100: =B98+B99 -> 1795 | C100: 1762.66 | D100: 1514.019 | E100: 1607.8 | F100: 1379.554 | G100: 2283.069
A103: Licence fees | B103: 1 | C103: 2 | D103: 167.794 | G103: 280.025
A104: Other intangibles | B104: 84 | C104: 98.689 | D104: =251.321-D103 -> 83.527 | E104: 144.489 | F104: 317.536 | G104: =260.012+42.7 -> 302.712
A105: Tangible | B105: 266 | C105: 352.064 | D105: 380.67 | E105: 295.128 | F105: 444.871 | G105: 339.951
A106: Capex | B106: =SUM(B103:B105) -> 351 | C106: 452.753 | D106: 631.991 | E106: 439.617 | F106: 762.407 | G106: 922.688
A107: Capex less licence fees | B107: =B106-B103 -> 350 | C107: 450.753 | D107: 464.197 | E107: 439.617 | F107: 762.407 | G107: 642.663
A109: Spectrum reconciliation
A110: Gross book value of spectrum (opening) | B110: =C110-B111 -> 4838.534 | C110: =D110-C111 -> 4839.534 | D110: =E110-D111 -> 4841.534 | E110: 5009.328 | F110: 5009 | G110: =F110 -> 5009
A111: Additions | B111: =B103 -> 1 | C111: =C103 -> 2 | D111: =D103 -> 167.794 | E111: =E103 -> 0 | F111: =F103 -> 0 | G111: 280.025
A112: Amortisation
A113: Net book value of spectrum (closing) | B113: =B83 -> 2980.248 | C113: =C83 -> 2982.248 | D113: =D83 -> 3150.042 | E113: =E83 -> 3150.042 | F113: =F83 -> 3150 | G113: 3430.067
A115: EE | B115: EE LIMITED filing history - Find and update company information - GOV.UK (company-information.service.gov.uk)
B116: 2016 | C116: 2017 | D116: 2018 | E116: 2019 | F116: 2020 | G116: 2021
A117: Goodwill | B117: 637 | C117: 637 | D117: 637 | E117: 637 | F117: 637 | G117: 637
A118: Spectrum | B118: 1875 | C118: 1771 | D118: 1971 | E118: 2044 | F118: 1892 | G118: 2221
A119: Software | B119: 378 | C119: 380 | D119: 407 | E119: 432 | F119: 500 | G119: 601
A120: Other | B120: 2 | C120: 0 | D120: 0 | E120: 0 | F120: 0 | G120: 0
A121: Total intangible assets | B121: =SUM(B117:B120) -> 2892 | C121: =SUM(C117:C120) -> 2788 | D121: =SUM(D117:D120) -> 3015 | E121: =SUM(E117:E120) -> 3113 | F121: =SUM(F117:F120) -> 3029 | G121: 3459
A122: Network | B122: 2351 | C122: 2565 | D122: 2734 | E122: 2771 | F122: 2772 | G122: 2819
A123: Other | B123: =B124-B122 -> 135 | C123: 130 | D123: 122 | E123: 112 | F123: 108 | G123: 105
A124: Total tangible assets | B124: 2486 | C124: 2695 | D124: 2856 | E124: 2883 | F124: 2880 | G124: 2924
A125: Right to use assets | E125: 1266 | F125: 1113 | G125: 981
A126: Total tangible assets including leases | B126: =B124+B125 -> 2486 | C126: 2695 | D126: 2856 | E126: 4149 | F126: 3993 | G126: 3905
A127: Investments | B127: 13 | C127: 13 | D127: 13 | E127: 13 | F127: 13 | G127: 13
A128: Deferred tax asset | B128: 187 | C128: 70 | D128: 0 | E128: 0 | F128: 0 | G128: 0
A129: Derivative financial instruments | B129: 48 | C129: 0 | D129: 0 | E129: 0 | F129: 0 | G129: 0
A130: Trade and other receivables | B130: 19 | C130: 60 | D130: 50 | E130: 38 | F130: 24 | G130: 12
A131: Contract assets | B131: 0 | C131: 0 | D131: 231 | E131: 250 | F131: 320 | G131: 329
A132: Deferred contract costs | B132: 0 | C132: 0 | D132: 95 | E132: 82 | F132: 44 | G132: 48
A133: Other non-current assets | B133: =SUM(B127:B132) -> 267 | C133: 143 | D133: 389 | E133: 383 | F133: 401 | G133: 402
A134: Total non-current assets | B134: =B121+B126+B133 -> 5645 | C134: 5626 | D134: 6260 | E134: 7645 | F134: 7423 | G134: 7766
A135: Cash | B135: 30 | C135: 48 | D135: 51 | E135: 34 | F135: 17 | G135: 22
A136: Derivative financial instruments | B136: 0 | C136: 66 | D136: 0 | E136: 0 | F136: 0 | G136: 0
A137: Other | B137: =B138-B135 -> 1203 | C137: =C138-C135-C136 -> 1402 | D137: =D138-D135 -> 2279 | E137: =E138-E135 -> 2414 | F137: =F138-F135 -> 3653 | G137: =G138-G135 -> 3715
A138: Current assets | B138: 1233 | C138: 1516 | D138: 2330 | E138: 2448 | F138: 3670 | G138: 3737
A139: Current liabilities | B139: -2626 | C139: -2887 | D139: -2931 | E139: -2533 | F139: -2620 | G139: -2335
A140: Net current assets/(liabilities) | B140: =B138+B139 -> -1393 | C140: -1371 | D140: -601 | E140: -85 | F140: 1050 | G140: 1402
A141: Total assets less current liabilities | B141: =B140+B134 -> 4252 | C141: 4255 | D141: 5659 | E141: 7560 | F141: 8473 | G141: 9168
A143: Licence fees | D143: 304 | E143: 202 | F143: -19 | G143: 479
A144: Other intangibles | B144: 112 | C144: 89 | D144: 117 | E144: 105 | F144: 143 | G144: =192 -> 192
A145: Tangible | B145: 761 | C145: 611 | D145: 496 | E145: 452 | F145: 538 | G145: 617
A146: Capex | B146: =SUM(B143:B145) -> 873 | C146: 700 | D146: 917 | E146: 759 | F146: 662 | G146: 1288
A147: Capex less licence fees | B147: =B146-B143 -> 873 | C147: 700 | D147: 613 | E147: 557 | F147: 681 | G147: 809
A149: Spectrum reconciliation
A150: Gross book value of spectrum (opening) | B150: 4302 | C150: 4302 | D150: 4302 | E150: 4606 | F150: 4808 | G150: 4789
A151: Additions | B151: =B143 -> 0 | C151: =C143 -> 0 | D151: =D143 -> 304 | E151: =E143 -> 202 | F151: =F143 -> -19 | G151: 479
A152: Amortisation | B152: =Profitability!B35 -> 368 | C152: =Profitability!C35 -> 104 | D152: =Profitability!D35 -> 104 | E152: =Profitability!E35 -> 129 | F152: =Profitability!F35 -> 134 | G152: 150
A153: Net book value of spectrum (closing) | B153: =B118 -> 1875 | C153: 1771 | D153: 1971 | E153: 2044 | F153: 1892 | G153: 2221
A154: Estimated amortisation excluding 5G | B154: =B152 -> 368 | C154: =C152 -> 104 | D154: =D152 -> 104 | E154: =D154 -> 104 | F154: =E154 -> 104 | G154: =F154 -> 104
A155: Add back amortisation | B155: =B152-B154 -> 0 | C155: 0 | D155: 0 | E155: 25 | F155: 30 | G155: 46

Sheet Profitability
A1: Profitability
A2: 2020 is either March 2021 or December 2020
A4: Vodafone | B4: VODAFONE LIMITED overview - Find and update company information - GOV.UK (company-information.service.gov.uk)
B5: 2016 | C5: 2017 | D5: 2018 | E5: 2019 | F5: 2020 | G5: 2021 | H5: Notes
A6: Revenue | B6: 5843.9 | C6: 6253.6 | D6: 5512.9 | E6: 5657.6 | F6: 5384 | G6: 5543.2
A7: Operating profit | B7: =-669.2 -> -669.2 | C7: =-340.7 -> -340.7 | D7: =-676.8 -> -676.8 | E7: =-351.5 -> -351.5 | F7: 186.8 | G7: -317.7
A8: Net profit | B8: =-621.3 -> -621.3 | C8: =-256.9 -> -256.9 | D8: =-587.2 -> -587.2 | E8: =-226.2 -> -226.2 | F8: 276 | G8: 136.9
A9: Exceptionals | B9: -37.5 | C9: -4 | D9: -114.9 | E9: -6.1 | F9: =678.5-145.7+1.4 -> 534.2 | G9: -137
A10: Amortisation of Spectrum | B10: 391.9 | C10: 391.9 | D10: 402.1 | E10: 410.3 | F10: 433.3 | G10: 334.9
A13: Telefonica | B13: O2 HOLDINGS LIMITED overview - Find and update company information - GOV.UK (company-information.service.gov.uk) | G13: TELEFONICA UK LIMITED filing history - Find and update company information - GOV.UK (company-information.service.gov.uk)
B14: 2016 | C14: 2017 | D14: 2018 | E14: 2019 | F14: 2020 | G14: 2021
A15: Revenue | B15: 5603 | C15: 5729 | D15: 6007 | E15: 6235 | F15: 5962 | G15: 5485
A16: Operating profit | B16: 562 | C16: 573 | D16: 784 | E16: 824 | F16: 792 | G16: 768
A17: Net profit | B17: 425 | C17: 448 | D17: 629 | E17: 641 | F17: 608 | G17: 656
A18: Amortisation of Spectrum | B18: 145 | C18: 145 | D18: 152 | E18: 158 | F18: 171 | G18: 193
A21: Hutchison | B21: HUTCHISON 3G UK LIMITED overview - Find and update company information - GOV.UK (company-information.service.gov.uk)
B22: 2016 | C22: 2017 | D22: 2018 | E22: 2019 | F22: 2020 | G22: 2021
A23: Revenue | B23: 2203 | C23: 2357 | D23: 2379 | E23: 2327 | F23: 2220.353 | G23: 2311.396
A24: Operating profit | B24: 308.091 | C24: 362.403 | D24: =78.342 -> 78.342 | E24: =360.319 -> 360.319 | F24: 175.733 | G24: 1125.165
A25: Net profit | B25: 181.554 | C25: 358.285 | D25: =72.385 -> 72.385 | E25: =238.569 -> 238.569 | F25: 195.211 | G25: 1411.644
A26: Exceptional items | B26: 0 | C26: 0 | D26: -315.993 | E26: 131.855 | F26: 0 | G26: 1078.2
A27: Amortisation of Spectrum | B27: 0 | C27: 0 | D27: 0 | E27: 0 | F27: 0 | G27: 0
A30: EE | B30: EE LIMITED filing history - Find and update company information - GOV.UK (company-information.service.gov.uk)
B31: 2016 | C31: 2017 | D31: 2018 | E31: 2019 | F31: 2020 | G31: 2021 | H31: 2016 is based on a 15 month accounting period
A32: Revenue | B32: =7991/15*12 -> 6392.8 | C32: 6747 | D32: 7149 | E32: 7264 | F32: 6971 | G32: 6856
A33: Operating profit | B33: =792/15*12 -> 633.6 | C33: 1292 | D33: 1455 | E33: 1661 | F33: 1402 | G33: 1589
A34: Net profit | B34: =508/15*12 -> 406.4 | C34: 1051 | D34: 1174 | E34: 1323 | F34: 1130 | G34: 1184
A35: Amortisation of Spectrum | B35: =460/15*12 -> 368 | C35: 104 | D35: 104 | E35: 129 | F35: 134 | G35: 150

Sheet CPI data
A2: Table 20a | B2: CPI All Items: 1998 to 20211 | E2: Consumer price inflation tables - Office for National Statistics
C4: Annual
C5: average | D5: Jan | E5: Feb | F5: Mar | G5: Apr | H5: May | I5: Jun | J5: Jul | K5: Aug | L5: Sep | M5: Oct | N5: Nov | O5: Dec
A6: D7BT | B6: 2015=100
B7: 1998 | C7: 71.2 | D7: 70.3 | E7: 70.5 | F7: 70.7 | G7: 71.1 | H7: 71.4 | I7: 71.3 | J7: 71 | K7: 71.2 | L7: 71.5 | M7: 71.5 | N7: 71.6 | O7: 71.8
B8: 1999 | C8: 72.1 | D8: 71.4 | E8: 71.5 | F8: 71.9 | G8: 72.2 | H8: 72.4 | I8: 72.3 | J8: 71.9 | K8: 72.1 | L8: 72.4 | M8: 72.3 | N8: 72.4 | O8: 72.6
B9: 2000 | C9: 72.7 | D9: 71.9 | E9: 72.2 | F9: 72.3 | G9: 72.6 | H9: 72.8 | I9: 72.9 | J9: 72.5 | K9: 72.5 | L9: 73.1 | M9: 73.1 | N9: 73.2 | O9: 73.2
B10: 2001 | C10: 73.6 | D10: 72.6 | E10: 72.7 | F10: 73 | G10: 73.4 | H10: 74 | I10: 74.1 | J10: 73.6 | K10: 73.9 | L10: 74.1 | M10: 73.9 | N10: 73.8 | O10: 74
B11: 2002 | C11: 74.5 | D11: 73.7 | E11: 73.8 | F11: 74.1 | G11: 74.4 | H11: 74.6 | I11: 74.6 | J11: 74.4 | K11: 74.6 | L11: 74.8 | M11: 74.9 | N11: 74.9 | O11: 75.2
B12: 2003 | C12: 75.5 | D12: 74.7 | E12: 75 | F12: 75.3 | G12: 75.5 | H12: 75.5 | I12: 75.4 | J12: 75.3 | K12: 75.6 | L12: 75.9 | M12: 76 | N12: 75.9 | O12: 76.2
B13: 2004 | C13: 76.5 | D13: 75.8 | E13: 76 | F13: 76.1 | G13: 76.4 | H13: 76.6 | I13: 76.6 | J13: 76.4 | K13: 76.6 | L13: 76.7 | M13: 76.9 | N13: 77 | O13: 77.4
B14: 2005 | C14: 78.1 | D14: 77 | E14: 77.2 | F14: 77.5 | G14: 77.8 | H14: 78.1 | I14: 78.1 | J14: 78.2 | K14: 78.4 | L14: 78.6 | M14: 78.7 | N14: 78.7 | O14: 78.9
B15: 2006 | C15: 79.9 | D15: 78.5 | E15: 78.8 | F15: 78.9 | G15: 79.4 | H15: 79.9 | I15: 80.1 | J15: 80 | K15: 80.4 | L15: 80.5 | M15: 80.6 | N15: 80.8 | O15: 81.3
B16: 2007 | C16: 81.8 | D16: 80.6 | E16: 81 | F16: 81.4 | G16: 81.6 | H16: 81.8 | I16: 82 | J16: 81.5 | K16: 81.8 | L16: 81.9 | M16: 82.3 | N16: 82.5 | O16: 83
B17: 2008 | C17: 84.7 | D17: 82.4 | E17: 83 | F17: 83.4 | G17: 84 | H17: 84.6 | I17: 85.2 | J17: 85.1 | K17: 85.7 | L17: 86.1 | M17: 85.9 | N17: 85.8 | O17: 85.5
B18: 2009 | C18: 86.6 | D18: 84.9 | E18: 85.6 | F18: 85.8 | G18: 86 | H18: 86.4 | I18: 86.7 | J18: 86.7 | K18: 87 | L18: 87.1 | M18: 87.2 | N18: 87.5 | O18: 88
B19: 2010 | C19: 89.4 | D19: 87.8 | E19: 88.2 | F19: 88.7 | G19: 89.2 | H19: 89.4 | I19: 89.5 | J19: 89.3 | K19: 89.8 | L19: 89.8 | M19: 90 | N19: 90.3 | O19: 91.2
B20: 2011 | C20: 93.4 | D20: 91.3 | E20: 92 | F20: 92.2 | G20: 93.2 | H20: 93.4 | I20: 93.3 | J20: 93.3 | K20: 93.8 | L20: 94.4 | M20: 94.5 | N20: 94.6 | O20: 95.1
B21: 2012 | C21: 96.1 | D21: 94.6 | E21: 95.1 | F21: 95.4 | G21: 96 | H21: 95.9 | I21: 95.5 | J21: 95.6 | K21: 96.1 | L21: 96.5 | M21: 97 | N21: 97.2 | O21: 97.6
B22: 2013 | C22: 98.5 | D22: 97.1 | E22: 97.8 | F22: 98.1 | G22: 98.3 | H22: 98.5 | I22: 98.3 | J22: 98.3 | K22: 98.7 | L22: 99.1 | M22: 99.1 | N22: 99.2 | O22: 99.6
B23: 2014 | C23: 100 | D23: 99 | E23: 99.5 | F23: 99.7 | G23: 100.1 | H23: 100 | I23: 100.2 | J23: 99.9 | K23: 100.2 | L23: 100.3 | M23: 100.4 | N23: 100.1 | O23: 100.1
B24: 2015 | C24: 100 | D24: 99.3 | E24: 99.5 | F24: 99.7 | G24: 99.9 | H24: 100.1 | I24: 100.2 | J24: 100 | K24: 100.3 | L24: 100.2 | M24: 100.3 | N24: 100.3 | O24: 100.3
B25: 2016 | C25: 100.7 | D25: 99.5 | E25: 99.8 | F25: 100.2 | G25: 100.2 | H25: 100.4 | I25: 100.6 | J25: 100.6 | K25: 100.9 | L25: 101.1 | M25: 101.2 | N25: 101.4 | O25: 101.9
B26: 2017 | C26: 103.4 | D26: 101.4 | E26: 102.1 | F26: 102.5 | G26: 102.9 | H26: 103.3 | I26: 103.3 | J26: 103.2 | K26: 103.8 | L26: 104.1 | M26: 104.2 | N26: 104.6 | O26: 104.9
B27: 2018 | C27: 105.9 | D27: 104.4 | E27: 104.9 | F27: 105 | G27: 105.4 | H27: 105.8 | I27: 105.8 | J27: 105.8 | K27: 106.5 | L27: 106.6 | M27: 106.7 | N27: 107 | O27: 107.1
B28: 2019 | C28: 107.8 | D28: 106.3 | E28: 106.8 | F28: 107 | G28: 107.6 | H28: 107.9 | I28: 107.9 | J28: 107.9 | K28: 108.4 | L28: 108.5 | M28: 108.3 | N28: 108.5 | O28: 108.5
B29: 2020 | C29: 108.7 | D29: 108.2 | E29: 108.6 | F29: 108.6 | G29: 108.5 | H29: 108.5 | I29: 108.6 | J29: 109.1 | K29: 108.6 | L29: 109.1 | M29: 109.1 | N29: 108.9 | O29: 109.2
B30: 2021 | C30: .. | D30: 109 | E30: 109.1 | F30: 109.4 | G30: 110.1 | H30: 110.8 | I30: 111.3 | J30: 111.3 | K30: 112.1 | L30: 112.4 | M30: 113.6 | N30: 114.5 | O30: 115.1
B31: 2022 | C31: .. | D31: 114.9 | E31: 115.8 | F31: 117.1 | G31: 120 | H31: 120.8 | I31: 121.8 | J31: .. | K31: .. | L31: .. | M31: .. | N31: .. | O31: ..

Sheet Spectrum band valuation
A1: Spectrum band valuation
B3: Band | C3: Notes | D3: Spectrum acquired (FY) | E3: Original lump sum value (£m/MHz) | F3: Latest available lump sum value (£m/MHz) | G3: Price base | H3: ALFs (Y/N) | I3: Payable from | J3: Annual ALF (real terms) | K3: Link
B4: 700 FDD | C4: 700Mhz and 3.6Ghz March 2021 auction, updated for inflation in December 2021 ALF Statement (Table 4.1) | D4: 2021/22 | E4: 14 | F4: 14.1 | G4: 2021-04-01 | H4: No | I4: n/a | K4: https://www.ofcom.org.uk/__data/assets/pdf_file/0027/229428/1900_2100-mhz-statement.pdf
B5: 700 SDL | C5: The 20 MHz of SDL was sold for £4m for 20MHz. | D5: 2021/22 | E5: =4/20 -> 0.2 | G5: 2021-03-01 | H5: No | I5: n/a | K5: Ofcom spectrum auction: principal stage results - Ofcom
B6: 800 | C6: 4G Auction 2013; market value updated for inflation in Dec 2021 ALF Statement (Table 2.1) | D6: 2013/14 | E6: Between £22.5 and £27.5 | F6: 37 | G6: 2021-04-01 | H6: No | I6: n/a | K6: https://www.ofcom.org.uk/__data/assets/pdf_file/0027/229428/1900_2100-mhz-statement.pdf
B7: 900 | C7: Dec 2018 ALF decision, payable from 31 January 2019 (paragraph 4.59) | D7: Pre-2000 | E7: Unknown | F7: 19 | G7: 2018-04-01 | H7: Yes | I7: 2019-01-31 | J7: 1.093 | K7: https://www.ofcom.org.uk/__data/assets/pdf_file/0020/130547/Statement-Annual-licence-fees-900-MHz-and-1800-MHz.pdf
B8: 1400 | C8: Qualcomm UK Spectrum Ltd won 40MHz in May 2008 , and was taken on by Three and Vodafone in October 2015. ALFs payable from April 23. Currently used for 4G by Three and Vodafone. Cash paid by the MNOs is confidential and therefore we have based the value on the 2016 German Spectrum Auction for 1500MHz which is the closest available benchmark | D8: 2015/16 | E8: Unknown | F8: =F32 -> 5.889641249 | G8: 2015-04-01 | H8: No | I8: n/a | K8: Bundesnetzagentur - FrequencyAuction
B9: 1800 | C9: Dec 2018 ALF decision, payable from 31 January 2019 (paragraph 4.67). Three aquired its 1800Mhz spectrum from EE in 2012. | D9: Pre-2000 | E9: Unknown | F9: 14 | G9: 2018-04-01 | H9: Yes | I9: 2019-01-31 | J9: 0.805 | K9: https://www.ofcom.org.uk/__data/assets/pdf_file/0020/130547/Statement-Annual-licence-fees-900-MHz-and-1800-MHz.pdf
B10: 1900 | C10: Sold together with 2.1GHz licences. Ofcom plans to consult further, possibly revoking the licences. No ALFs set at present time, so assume a zero value for the time being. Dec 2021 ALF Statement. | D10: 2000/01 | E10: Included as part of 2100MHz | F10: 0 | G10: 2021-04-01 | H10: No | I10: n/a | K10: https://www.ofcom.org.uk/__data/assets/pdf_file/0027/229428/1900_2100-mhz-statement.pdf
B11: 2100 | C11: Dec 2021 ALF Statement. Original licences acquired in 2001 auction. | D11: 2000/01 | E11: Between £149 and £205 | F11: 10.5 | G11: 2021-04-01 | H11: Yes | I11: 2022-01-01 | J11: 0.567 | K11: https://www.ofcom.org.uk/__data/assets/pdf_file/0027/229428/1900_2100-mhz-statement.pdf
B12: 2300 | C12: 2.3GHz and 3.4GHz 5G Auction April 2018. Updated for inflation in Dec 2021 ALF Statement (Table 4.1) | D12: 2018 | E12: =205.896/40 -> 5.1474 | F12: 5.4 | G12: 2021-04-01 | H12: No | I12: n/a | K12: https://www.ofcom.org.uk/__data/assets/pdf_file/0027/229428/1900_2100-mhz-statement.pdf
B13: 2500 | C13: Restricted spectrum licenced at the same time of the 2013 Auction | G13: n/a | K13: Currently no value - but could have value in the future
B14: 2600 | C14: 4G Auction 2013; market value updated for inflation in Dec 2021 ALF Statement (Table 4.1) | D14: 2013 | E14: Between £3.6 and £5.2 | F14: 6.2 | G14: 2021-04-01 | H14: No | I14: n/a | K14: https://www.ofcom.org.uk/__data/assets/pdf_file/0027/229428/1900_2100-mhz-statement.pdf
B15: 3400 | C15: 2.3GHz and 3.4GHz 5G Auction April 2018. Updated for inflation in Dec 2021 ALF Statement (Table 4.1) | D15: 2018 | E15: Between £7.6 and £8.2 | F15: 7.9 | G15: 2021-04-01 | H15: No | I15: n/a | K15: https://www.ofcom.org.uk/__data/assets/pdf_file/0027/229428/1900_2100-mhz-statement.pdf
B16: 3.6-3.8GHz | C16: 700Mhz and 3.6Ghz March 2021 auction, updated for inflation in December 2021 ALF Statement (Table 4.1) | D16: 2021 | E16: 4.41 | F16: 4.2 | G16: 2021-04-01 | H16: No | I16: n/a | K16: https://www.ofcom.org.uk/__data/assets/pdf_file/0027/229428/1900_2100-mhz-statement.pdf
B17: 3.4-3.6GHz (Three) | C17: Three purchased UK Broadband for £250m in February 2017. Market value determined in June 2019 ALF statement; payable from 31 July 2019 (Page 1) | D17: 2017 | E17: =250/120 -> 2.083333333 | F17: =37.8/5 -> 7.56 | G17: 2018-12-01 | H17: Yes | I17: 2019-07-31 | J17: 0.435 | K17: https://www.ofcom.org.uk/__data/assets/pdf_file/0013/151231/statement-annual-licence-fees-uk-3.4-ghz-and-3.6-ghz-spectrum.pdf
B19: Link to Spectrum awards | C19: Awards archive - Ofcom
A22: 2016 German Spectrum Auction - completed on 19/6/2015 | D22: Bundesnetzagentur - FrequencyAuction
D23: €000s | E23: Price per MHz €ms | F23: Price per MHz £ms
A24: 1500 A | B24: 1x 5MHZ | C24: Vodafone | D24: 40939 | E24: =D24/5/1000 -> 8.1878 | F24: =$E$34*E24 -> 5.851354249
A25: 1500 B | B25: 1x 5MHZ | C25: Vodafone | D25: 40939 | E25: 8.1878 | F25: =$E$34*E25 -> 5.851354249
A26: 1500 C | B26: 1x 5MHZ | C26: Vodafone | D26: 40919 | E26: 8.1838 | F26: 5.848495676
A27: 1500 D | B27: 1x 5MHZ | C27: Telekom | D27: 42964 | E27: 8.5928 | F27: 6.140784678
A28: 1500 E | B28: 1x 5MHZ | C28: Vodafone | D28: 42961 | E28: 8.5922 | F28: 6.140355892
A29: 1500 F | B29: 1x 5MHZ | C29: Telekom | D29: 39011 | E29: 7.8022 | F29: 5.575787894
A30: 1500 G | B30: 1x 5MHZ | C30: Telekom | D30: 40961 | E30: 8.1922 | F30: 5.854498678
A31: 1500 H | B31: 1x 5MHZ | C31: Telekom | D31: 40961 | E31: 8.1922 | F31: 5.854498678
F32: =AVERAGE(F24:F31) -> 5.889641249
D34: £/€ ER on 19/6/2015 | E34: =1/1.3993 -> 0.7146430358 | F34: British Pound to Euro Spot Exchange Rates for 2015

Sheet Spectrum valuation
A1: Spectrum valuation
I3: Agreed to Ofcom Spectrum holdings | M3: Market value of spectrum, assuming it increases with inflation
D4: Valuing MNOs spectrum | M4: 2015-04-01 | N4: 2016-04-01 | O4: 2017-04-01 | P4: 2018-04-01 | Q4: 2019-04-01 | R4: 2020-04-01 | S4: 2021-04-01 | T4: 2022-04-01
M5: ='CPI data'!G24 -> 99.9 | N5: ='CPI data'!G25 -> 100.2 | O5: ='CPI data'!G26 -> 102.9 | P5: ='CPI data'!G27 -> 105.4 | Q5: ='CPI data'!G28 -> 107.6 | R5: ='CPI data'!G29 -> 108.5 | S5: ='CPI data'!G30 -> 110.1 | T5: ='CPI data'!G31 -> 120
F6: Current use | G6: Future use | H6: Bandwidth | I6: Value per Mhz | J6: Price base | K6: Valuation | M6: 2015 | N6: 2016 | O6: 2017 | P6: 2018 | Q6: 2019 | R6: 2020 | S6: 2021 | T6: 2022
D7: Vodafone | E7: 800 | F7: 4G | H7: 20 | I7: ='Spectrum band valuation'!F6 -> 37 | J7: ='Spectrum band valuation'!G6 -> 2021-04-01 | K7: =H7*I7 -> 740 | M7: =N7*(M$5/N$5) -> 671.4441417 | N7: 673.4604905 | O7: 691.6076294 | P7: 708.4105359 | Q7: 723.1970936 | R7: 729.2461399 | S7: =K7 -> 740 | T7: =S7*(T$5/S$5) -> 806.5395095
E8: 900 | F8: 2G/3G | H8: =12.4*2+10 -> 34.8 | I8: ='Spectrum band valuation'!F7 -> 19 | J8: ='Spectrum band valuation'!G7 -> 2018-04-01 | K8: =H8*I8 -> 661.2 | M8: =N8*(M$5/N$5) -> 626.6971537 | N8: =O8*(N$5/O$5) -> 628.5791271 | O8: =P8*(O$5/P$5) -> 645.516888 | P8: =K8 -> 661.2 | Q8: =P8*(Q$5/P$5) -> 675.0011385 | R8: 680.6470588 | S8: 690.6842505 | T8: 752.7893738
E9: 1400 | F9: 4G | H9: 20 | I9: ='Spectrum band valuation'!F8 -> 5.889641249 | J9: 2015-04-01 | K9: 117.792825 | M9: =K9 -> 117.792825 | N9: =M9*(N$5/M$5) -> 118.1465572 | O9: =N9*(O$5/N$5) -> 121.3301471 | P9: =O9*(P$5/O$5) -> 124.2779154 | Q9: 126.8719516 | R9: 127.9331483 | S9: 129.81972 | T9: 141.4928829
E10: 1800 | F10: 2G | H10: 11.6 | I10: ='Spectrum band valuation'!F9 -> 14 | J10: ='Spectrum band valuation'!G9 -> 2018-04-01 | K10: 162.4 | M10: =N10*(M$5/N$5) -> 153.9256167 | N10: 154.3878558 | O10: 158.5480076 | P10: =K10 -> 162.4 | Q10: 165.7897533 | R10: 167.1764706 | S10: 169.6417457 | T10: 184.8956357
E11: 2100 | F11: 3G | H11: 29.6 | I11: ='Spectrum band valuation'!F11 -> 10.5 | J11: ='Spectrum band valuation'!G11 -> 2021-04-01 | K11: 310.8 | M11: 282.0065395 | N11: 282.853406 | O11: 290.4752044 | P11: =Q11*(P$5/Q$5) -> 297.5324251 | Q11: =R11*(Q$5/R$5) -> 303.7427793 | R11: =S11*(R$5/S$5) -> 306.2833787 | S11: =K11 -> 310.8 | T11: 338.746594
E12: 2500 | F12: Unpaired -Restricted Frequency | H12: 25 | I12: ='Spectrum band valuation'!F13 -> 0 | J12: ='Spectrum band valuation'!G13 -> n/a | K12: 0
E13: 2600 | F13: 4G | H13: 40 | I13: ='Spectrum band valuation'!F14 -> 6.2 | J13: ='Spectrum band valuation'!G14 -> 2021-04-01 | K13: 248 | M13: =N13*(M$5/N$5) -> 225.0245232 | N13: 225.7002725 | O13: 231.7820163 | P13: 237.4132607 | Q13: 242.3687557 | R13: 244.3960036 | S13: =K13 -> 248 | T13: 270.2997275
E14: 3400 | F14: 5G | H14: 50 | I14: ='Spectrum band valuation'!F15 -> 7.9 | J14: ='Spectrum band valuation'!G15 -> 2021-04-01 | K14: 395 | M14: 358.4059946 | N14: 359.4822888 | O14: 369.1689373 | P14: 378.1380563 | Q14: 386.030881 | R14: 389.2597639 | S14: =K14 -> 395 | T14: 430.5177112
E15: 3600-3800 | F15: 5G | H15: 40 | I15: ='Spectrum band valuation'!F16 -> 4.2 | J15: ='Spectrum band valuation'!G16 -> 2021-04-01 | K15: 168 | M15: 152.4359673 | N15: 152.893733 | O15: 157.013624 | P15: 160.8283379 | Q15: 164.1852861 | R15: 165.5585831 | S15: =K15 -> 168 | T15: 183.106267
H16: =SUM(H7:H15) -> 271 | K16: =SUM(K7:K15) -> 2803.192825 | M16: =SUM(M7:M15) -> 2587.732762 | N16: =SUM(N7:N15) -> 2595.503731 | O16: 2665.442454 | P16: 2730.200531 | Q16: 2787.187639 | R16: 2810.500547 | S16: 2851.945716 | T16: =SUM(T7:T15) -> 3108.387702
G17: Ex 5G and unpaired | H17: =H16-H15-H14-H12 -> 156 | K17: =K16-K15-K14-K12 -> 2240.192825 | M17: =SUM(M7:M11)+M13 -> 2076.8908 | N17: 2083.127709 | O17: 2139.259893 | P17: 2191.234137 | Q17: 2236.971472 | R17: 2255.6822 | S17: 2288.945716 | T17: 2494.763723
D19: O2 | E19: 700 | F19: 5G | H19: 20 | I19: ='Spectrum band valuation'!F4 -> 14.1 | J19: ='Spectrum band valuation'!G4 -> 2021-04-01 | K19: =H19*I19 -> 282 | M19: =N19*(M$5/N$5) -> 255.8746594 | N19: 256.6430518 | O19: 263.5585831 | P19: 269.9618529 | Q19: 275.5967302 | R19: 277.9019074 | S19: =K19 -> 282 | T19: =S19*(T$5/S$5) -> 307.3569482
E20: 800 | F20: 4G | H20: 20 | I20: ='Spectrum band valuation'!F6 -> 37 | J20: ='Spectrum band valuation'!G6 -> 2021-04-01 | K20: 740 | M20: =N20*(M$5/N$5) -> 671.4441417 | N20: 673.4604905 | O20: 691.6076294 | P20: 708.4105359 | Q20: 723.1970936 | R20: =S20*(R$5/S$5) -> 729.2461399 | S20: =K20 -> 740 | T20: =S20*(T$5/S$5) -> 806.5395095
E21: 900 | F21: 2G/3G | H21: =12.4*2+10 -> 34.8 | I21: ='Spectrum band valuation'!F7 -> 19 | J21: ='Spectrum band valuation'!G7 -> 2018-04-01 | K21: 661.2 | M21: 626.6971537 | N21: 628.5791271 | O21: 645.516888 | P21: =K21 -> 661.2 | Q21: =P21*(Q$5/P$5) -> 675.0011385 | R21: 680.6470588 | S21: 690.6842505 | T21: =S21*(T$5/S$5) -> 752.7893738
E22: 1800 | F22: 2G | H22: 11.6 | I22: ='Spectrum band valuation'!F9 -> 14 | J22: ='Spectrum band valuation'!G9 -> 2018-04-01 | K22: 162.4 | M22: 153.9256167 | N22: 154.3878558 | O22: 158.5480076 | P22: =K22 -> 162.4 | Q22: 165.7897533 | R22: 167.1764706 | S22: 169.6417457 | T22: =S22*(T$5/S$5) -> 184.8956357
E23: 1900 | F23: 3G | H23: 5 | I23: ='Spectrum band valuation'!F10 -> 0 | J23: ='Spectrum band valuation'!G10 -> 2021-04-01 | K23: 0
E24: 2100 | F24: 3G | H24: 20 | I24: ='Spectrum band valuation'!F11 -> 10.5 | J24: ='Spectrum band valuation'!G11 -> 2021-04-01 | K24: 210 | M24: =N24*(M$5/N$5) -> 190.5449591 | N24: 191.1171662 | O24: 196.26703 | P24: 201.0354223 | Q24: 205.2316076 | R24: =S24*(R$5/S$5) -> 206.9482289 | S24: =K24 -> 210 | T24: =S24*(T$5/S$5) -> 228.8828338
E25: 2300 | F25: 4G | H25: 40 | I25: ='Spectrum band valuation'!F12 -> 5.4 | J25: ='Spectrum band valuation'!G12 -> 2021-04-01 | K25: 216 | M25: 195.9891008 | N25: 196.5776567 | O25: 201.8746594 | P25: 206.7792916 | Q25: 211.0953678 | R25: =S25*(R$5/S$5) -> 212.8610354 | S25: =K25 -> 216 | T25: =S25*(T$5/S$5) -> 235.4223433
E26: 2500 | F26: Unpaired- Restricted Frequency | H26: 25 | I26: ='Spectrum band valuation'!F13 -> 0 | J26: ='Spectrum band valuation'!G13 -> n/a | K26: 0
E27: 3400 | F27: 5G | H27: 40 | I27: ='Spectrum band valuation'!F15 -> 7.9 | J27: ='Spectrum band valuation'!G15 -> 2021-04-01 | K27: 316 | M27: =N27*(M$5/N$5) -> 286.7247956 | N27: 287.5858311 | O27: 295.3351499 | P27: 302.510445 | Q27: 308.8247048 | R27: 311.4078111 | S27: =K27 -> 316 | T27: =S27*(T$5/S$5) -> 344.4141689
E28: 3600-3800 | F28: 5G | H28: 40 | I28: ='Spectrum band valuation'!F16 -> 4.2 | J28: ='Spectrum band valuation'!G16 -> 2021-04-01 | K28: 168 | M28: 152.4359673 | N28: 152.893733 | O28: 157.013624 | P28: 160.8283379 | Q28: 164.1852861 | R28: 165.5585831 | S28: =K28 -> 168 | T28: =S28*(T$5/S$5) -> 183.106267
H29: =SUM(H19:H28) -> 256.4 | K29: =SUM(K19:K28) -> 2755.6 | M29: =SUM(M19:M28) -> 2533.636394 | N29: =SUM(N19:N28) -> 2541.244912 | O29: 2609.721571 | P29: 2673.125886 | Q29: 2728.921682 | R29: 2751.747235 | S29: 2792.325996 | T29: =SUM(T19:T28) -> 3043.40708
G30: Ex 5G and unpaired | H30: =H29-H28-H27-H26-H23-H19 -> 126.4 | K30: =K29-K28-K27-K26-K23-K19 -> 1989.6 | M30: =SUM(M20:M22)+M24+M25 -> 1838.600972 | N30: 1844.122296 | O30: 1893.814214 | P30: 1939.82525 | Q30: 1980.314961 | R30: 1996.878934 | S30: 2026.325996 | T30: 2208.529696
D32: Three | E32: 700 | F32: 5G | H32: 20 | I32: ='Spectrum band valuation'!F4 -> 14.1 | J32: ='Spectrum band valuation'!G4 -> 2021-04-01 | K32: =H32*I32 -> 282 | M32: =N32*(M$5/N$5) -> 255.8746594 | N32: 256.6430518 | O32: 263.5585831 | P32: 269.9618529 | Q32: 275.5967302 | R32: 277.9019074 | S32: =K32 -> 282 | T32: =S32*(T$5/S$5) -> 307.3569482
E33: 800 | F33: 4G | H33: 10 | I33: ='Spectrum band valuation'!F6 -> 37 | J33: ='Spectrum band valuation'!G6 -> 2021-04-01 | K33: 370 | M33: 335.7220708 | N33: 336.7302452 | O33: 345.8038147 | P33: 354.2052679 | Q33: 361.5985468 | R33: 364.6230699 | S33: =K33 -> 370 | T33: =S33*(T$5/S$5) -> 403.2697548
E34: 1400 | F34: 4G | H34: 20 | I34: ='Spectrum band valuation'!F8 -> 5.889641249 | J34: 2015-04-01 | K34: 117.792825 | M34: =K34 -> 117.792825 | N34: =M34*(N$5/M$5) -> 118.1465572 | O34: 121.3301471 | P34: 124.2779154 | Q34: 126.8719516 | R34: 127.9331483 | S34: 129.81972 | T34: =S34*(T$5/S$5) -> 141.4928829
E35: 1800 | F35: 2G | H35: 30 | I35: ='Spectrum band valuation'!F9 -> 14 | J35: ='Spectrum band valuation'!G9 -> 2018-04-01 | K35: 420 | M35: =N35*(M$5/N$5) -> 398.0834915 | N35: =O35*(N$5/O$5) -> 399.2789374 | O35: =P35*(O$5/P$5) -> 410.0379507 | P35: =K35 -> 420 | Q35: =P35*(Q$5/P$5) -> 428.7666034 | R35: =Q35*(R$5/Q$5) -> 432.3529412 | S35: =R35*(S$5/R$5) -> 438.7286528 | T35: =S35*(T$5/S$5) -> 478.1783681
E36: 1900 | F36: 3G | H36: 5.1 | I36: ='Spectrum band valuation'!F10 -> 0 | J36: ='Spectrum band valuation'!G10 -> 2021-04-01 | K36: 0
E37: 2100 | F37: 3G | H37: =0.3+14.6+14.6 -> 29.5 | I37: ='Spectrum band valuation'!F11 -> 10.5 | J37: ='Spectrum band valuation'!G11 -> 2021-04-01 | K37: 309.75 | M37: =N37*(M$5/N$5) -> 281.0538147 | N37: 281.8978202 | O37: 289.4938692 | P37: 296.527248 | Q37: 302.7166213 | R37: 305.2486376 | S37: =K37 -> 309.75 | T37: =S37*(T$5/S$5) -> 337.6021798
E38: 3400 | F38: 5G | H38: 20 | I38: ='Spectrum band valuation'!F15 -> 7.9 | J38: ='Spectrum band valuation'!G15 -> 2021-04-01 | K38: 158 | M38: =N38*(M$5/N$5) -> 143.3623978 | N38: =O38*(N$5/O$5) -> 143.7929155 | O38: =P38*(O$5/P$5) -> 147.6675749 | P38: =Q38*(P$5/Q$5) -> 151.2552225 | Q38: =R38*(Q$5/R$5) -> 154.4123524 | R38: =S38*(R$5/S$5) -> 155.7039055 | S38: =K38 -> 158 | T38: =S38*(T$5/S$5) -> 172.2070845
E39: 3400 | F39: 5G | H39: 40 | I39: ='Spectrum band valuation'!F17 -> 7.56 | J39: ='Spectrum band valuation'!G17 -> 2018-12-01 | K39: 302.4 | M39: =N39*(M$5/N$5) -> 280.7598513 | N39: =O39*(N$5/O$5) -> 281.602974 | O39: 289.1910781 | P39: 296.2171004 | Q39: =K39 -> 302.4 | R39: =Q39*(R$5/Q$5) -> 304.929368 | S39: =R39*(S$5/R$5) -> 309.4260223 | T39: =S39*(T$5/S$5) -> 337.2490706
E40: 3600 | F40: 5G | H40: 80 | I40: ='Spectrum band valuation'!F17 -> 7.56 | J40: ='Spectrum band valuation'!G17 -> 2018-12-01 | K40: 604.8 | M40: =N40*(M$5/N$5) -> 561.5197026 | N40: =O40*(N$5/O$5) -> 563.205948 | O40: 578.3821561 | P40: 592.4342007 | Q40: =K40 -> 604.8 | R40: =Q40*(R$5/Q$5) -> 609.8587361 | S40: =R40*(S$5/R$5) -> 618.8520446 | T40: =S40*(T$5/S$5) -> 674.4981413
E41: 3925-4009 | F41: No valuation for this spectrum as currently can not be used for deployment of 5G | H41: 84 | K41: 0
H42: =SUM(H32:H41) -> 338.6 | K42: =SUM(K32:K41) -> 2564.742825 | M42: =SUM(M32:M41) -> 2374.168813 | N42: =SUM(N32:N41) -> 2381.298449 | O42: 2445.465174 | P42: 2504.878808 | Q42: 2557.162806 | R42: 2578.551714 | S42: 2616.57644 | T42: =SUM(T32:T41) -> 2851.85443
G43: Ex 5G and unpaired | H43: =H42-H41-H40-H39-H38-H32-H36 -> 89.5 | K43: =K42-K41-K40-K39-K38-K32-K36 -> 1217.542825 | M43: =SUM(M33:M35)+M37 -> 1132.652202 | N43: 1136.05356 | O43: 1166.665782 | P43: 1195.010431 | Q43: 1219.953723 | R43: 1230.157797 | S43: 1248.298373 | T43: 1360.543186
D45: BT | E45: 700 | F45: 5G | H45: 20 | I45: ='Spectrum band valuation'!F4 -> 14.1 | J45: ='Spectrum band valuation'!G4 -> 2021-04-01 | K45: =H45*I45 -> 282 | M45: =N45*(M$5/N$5) -> 255.8746594 | N45: 256.6430518 | O45: 263.5585831 | P45: 269.9618529 | Q45: 275.5967302 | R45: 277.9019074 | S45: =K45 -> 282 | T45: =S45*(T$5/S$5) -> 307.3569482
E46: 700 SDL | F46: 5G | H46: 20 | I46: ='Spectrum band valuation'!E5 -> 0.2 | J46: 2021-03-01 | K46: 4 | M46: 3.629427793 | N46: 3.640326975 | O46: 3.738419619 | P46: 3.82924614 | Q46: 3.909173479 | R46: 3.941871026 | S46: =K46 -> 4 | T46: =S46*(T$5/S$5) -> 4.359673025
E47: 800 | F47: 4G | G47: 4G | H47: 10 | I47: ='Spectrum band valuation'!F6 -> 37 | J47: ='Spectrum band valuation'!G6 -> 2021-04-01 | K47: 370 | M47: 335.7220708 | N47: 336.7302452 | O47: 345.8038147 | P47: 354.2052679 | Q47: 361.5985468 | R47: 364.6230699 | S47: =K47 -> 370 | T47: =S47*(T$5/S$5) -> 403.2697548
E48: 1800 | F48: 2G/4G | G48: 2G/4G | H48: 90 | I48: ='Spectrum band valuation'!F9 -> 14 | J48: ='Spectrum band valuation'!G9 -> 2018-04-01 | K48: 1260 | M48: =N48*(M$5/N$5) -> 1194.250474 | N48: =O48*(N$5/O$5) -> 1197.836812 | O48: =P48*(O$5/P$5) -> 1230.113852 | P48: =K48 -> 1260 | Q48: =P48*(Q$5/P$5) -> 1286.29981 | R48: =Q48*(R$5/Q$5) -> 1297.058824 | S48: =R48*(S$5/R$5) -> 1316.185958 | T48: =S48*(T$5/S$5) -> 1434.535104
E49: 1900 | F49: 3G | G49: not referenced | H49: 10 | I49: ='Spectrum band valuation'!F10 -> 0 | J49: ='Spectrum band valuation'!G10 -> 2021-04-01 | K49: 0
E50: 2100 | F50: 3G/4G | G50: 4G/5G | H50: 40 | I50: ='Spectrum band valuation'!F11 -> 10.5 | J50: ='Spectrum band valuation'!G11 -> 2021-04-01 | K50: 420 | M50: =N50*(M$5/N$5) -> 381.0899183 | N50: 382.2343324 | O50: 392.5340599 | P50: 402.0708447 | Q50: 410.4632153 | R50: =S50*(R$5/S$5) -> 413.8964578 | S50: =K50 -> 420 | T50: =S50*(T$5/S$5) -> 457.7656676
E51: 2600 | F51: 4G | G51: 4G/5G | H51: =30+70 -> 100 | I51: ='Spectrum band valuation'!F14 -> 6.2 | J51: ='Spectrum band valuation'!G14 -> 2021-04-01 | K51: 620 | M51: 562.5613079 | N51: 564.2506812 | O51: 579.4550409 | P51: 593.5331517 | Q51: 605.9218892 | R51: =S51*(R$5/S$5) -> 610.9900091 | S51: =K51 -> 620 | T51: =S51*(T$5/S$5) -> 675.7493188
E52: 3400 | F52: 5G | G52: 5G | H52: 40 | I52: ='Spectrum band valuation'!F15 -> 7.9 | J52: ='Spectrum band valuation'!G15 -> 2021-04-01 | K52: 316 | M52: =N52*(M$5/N$5) -> 286.7247956 | N52: 287.5858311 | O52: 295.3351499 | P52: 302.510445 | Q52: 308.8247048 | R52: =S52*(R$5/S$5) -> 311.4078111 | S52: =K52 -> 316 | T52: =S52*(T$5/S$5) -> 344.4141689
E53: 3600-3800 | F53: 5G | H53: 40 | I53: ='Spectrum band valuation'!F16 -> 4.2 | J53: ='Spectrum band valuation'!G16 -> 2021-04-01 | K53: 168 | M53: 152.4359673 | N53: 152.893733 | O53: 157.013624 | P53: 160.8283379 | Q53: 164.1852861 | R53: =S53*(R$5/S$5) -> 165.5585831 | S53: =K53 -> 168 | T53: =S53*(T$5/S$5) -> 183.106267
H54: =SUM(H45:H53) -> 370 | K54: =SUM(K45:K53) -> 3440 | M54: =SUM(M45:M53) -> 3172.288622 | N54: 3181.815014 | O54: 3267.552544 | P54: 3346.939146 | Q54: 3416.799356 | R54: 3445.378533 | S54: 3496.185958 | T54: 3810.556903
G55: Ex 5G and unpaired | H55: =H54-H53-H52-H45-H49-H46 -> 240 | K55: =K54-K53-K52-K45-K49-K46 -> 2670 | M55: =SUM(M47:M51) -> 2473.623771 | N55: 2481.052071 | O55: 2547.906768 | P55: 2609.809264 | Q55: 2664.283461 | R55: 2686.56836 | S55: 2726.185958 | T55: 2971.319846
D57: Sources
D59: Spectrum holdings | E59: Mobile and Wireless Broadband below 5 GHz - Ofcom | H59: Frequency Allocations Mobile and Broadband below 5 GHz (December 2020) (ofcom.org.uk)

Sheet Outputs>>>

Sheet ROCE calculations inc 5G
A1: ROCE calculations
E3: Vodafone | L3: Telefonica | S3: Three | Z3: EE | AH3: Total | AO3: Simple average
E4: 2017-03-01 | F4: 2018-03-01 | G4: 2019-03-01 | H4: 2020-03-01 | I4: 2021-03-01 | J4: 2022-03-01 | L4: 2016-12-01 | M4: 2017-12-01 | N4: 2018-12-01 | O4: 2019-12-01 | P4: 2020-12-01 | Q4: 2021-12-01 | S4: 2016-12-01 | T4: 2017-12-01 | U4: 2018-12-01 | V4: 2019-12-01 | W4: 2020-12-01 | X4: 2021-12-01 | Z4: 2017-03-01 | AA4: 2018-03-01 | AB4: 2019-03-01 | AC4: 2020-03-01 | AD4: 2021-03-01 | AE4: 2022-03-01 | AF4: Notes
E5: 2016 | F5: 2017 | G5: 2018 | H5: 2019 | I5: 2020 | J5: 2021 | L5: 2016 | M5: 2017 | N5: 2018 | O5: 2019 | P5: 2020 | Q5: 2021 | S5: 2016 | T5: 2017 | U5: 2018 | V5: 2019 | W5: 2020 | X5: 2021 | Z5: 2016 | AA5: 2017 | AB5: 2018 | AC5: 2019 | AD5: 2020 | AE5: 2021 | AH5: 2016 | AI5: 2017 | AJ5: 2018 | AK5: 2019 | AL5: 2020 | AM5: 2021 | AO5: 2016 | AP5: 2017 | AQ5: 2018 | AR5: 2019 | AS5: 2020 | AT5: 2021
D7: Revenue | E7: =Profitability!B6 -> 5843.9 | F7: =Profitability!C6 -> 6253.6 | G7: =Profitability!D6 -> 5512.9 | H7: =Profitability!E6 -> 5657.6 | I7: =Profitability!F6 -> 5384 | J7: =Profitability!G6 -> 5543.2 | L7: =Profitability!B15 -> 5603 | M7: =Profitability!C15 -> 5729 | N7: =Profitability!D15 -> 6007 | O7: =Profitability!E15 -> 6235 | P7: =Profitability!F15 -> 5962 | Q7: =Profitability!G15 -> 5485 | S7: =Profitability!B23 -> 2203 | T7: =Profitability!C23 -> 2357 | U7: =Profitability!D23 -> 2379 | V7: =Profitability!E23 -> 2327 | W7: =Profitability!F23 -> 2220.353 | X7: =Profitability!G23 -> 2311.396 | Z7: =Profitability!B32 -> 6392.8 | AA7: =Profitability!C32 -> 6747 | AB7: =Profitability!D32 -> 7149 | AC7: =Profitability!E32 -> 7264 | AD7: =Profitability!F32 -> 6971 | AE7: =Profitability!G32 -> 6856 | AH7: =E7+L7+S7+Z7 -> 20042.7 | AI7: 21086.6 | AJ7: 21047.9 | AK7: 21483.6 | AL7: 20537.353 | AM7: 20195.596 | AO7: =AVERAGE(E7,L7,S7,Z7) -> 5010.675 | AP7: 5271.65 | AQ7: 5261.975 | AR7: 5370.9 | AS7: 5134.33825 | AT7: 5048.899
D9: Capex (excl spectrum) | E9: ='Assets and Capex'!B31 -> 805.2 | F9: ='Assets and Capex'!C31 -> 792.2 | G9: ='Assets and Capex'!D31 -> 766 | H9: ='Assets and Capex'!E31 -> 683.3 | I9: ='Assets and Capex'!F31 -> 729.8 | J9: ='Assets and Capex'!G31 -> 725.4 | L9: ='Assets and Capex'!B71 -> 778 | M9: ='Assets and Capex'!C71 -> 704 | N9: ='Assets and Capex'!D71 -> 1129 | O9: ='Assets and Capex'!E71 -> 803 | P9: ='Assets and Capex'!F71 -> 822 | Q9: ='Assets and Capex'!G71 -> 1429 | S9: ='Assets and Capex'!B107 -> 350 | T9: ='Assets and Capex'!C107 -> 450.753 | U9: ='Assets and Capex'!D107 -> 464.197 | V9: ='Assets and Capex'!E107 -> 439.617 | W9: ='Assets and Capex'!F107 -> 762.407 | X9: ='Assets and Capex'!G107 -> 642.663 | Z9: ='Assets and Capex'!B147 -> 873 | AA9: ='Assets and Capex'!C147 -> 700 | AB9: ='Assets and Capex'!D147 -> 613 | AC9: ='Assets and Capex'!E147 -> 557 | AD9: ='Assets and Capex'!F147 -> 681 | AE9: ='Assets and Capex'!G147 -> 809 | AH9: =E9+L9+S9+Z9 -> 2806.2 | AI9: 2646.953 | AJ9: 2972.197 | AK9: 2482.917 | AL9: 2995.207 | AM9: 3606.063 | AO9: =AVERAGE(E9,L9,S9,Z9) -> 701.55 | AP9: 661.73825 | AQ9: 743.04925 | AR9: 620.72925 | AS9: 748.80175 | AT9: 901.51575
D10: Spectrum capex | E10: ='Assets and Capex'!B27 -> 0 | F10: ='Assets and Capex'!C27 -> 0 | G10: ='Assets and Capex'!D27 -> 359.2 | H10: ='Assets and Capex'!E27 -> 0 | I10: ='Assets and Capex'!F27 -> 0 | J10: ='Assets and Capex'!G27 -> 201 | L10: ='Assets and Capex'!B67 -> 0 | M10: ='Assets and Capex'!C67 -> 0 | N10: ='Assets and Capex'!D67 -> 206 | O10: ='Assets and Capex'!E67 -> 318 | P10: ='Assets and Capex'!F67 -> 84 | Q10: ='Assets and Capex'!G67 -> 448 | S10: ='Assets and Capex'!B103 -> 1 | T10: ='Assets and Capex'!C103 -> 2 | U10: ='Assets and Capex'!D103 -> 167.794 | V10: ='Assets and Capex'!E103 -> 0 | W10: ='Assets and Capex'!F103 -> 0 | X10: ='Assets and Capex'!G103 -> 280.025 | Z10: ='Assets and Capex'!B143 -> 0 | AA10: ='Assets and Capex'!C143 -> 0 | AB10: ='Assets and Capex'!D143 -> 304 | AC10: ='Assets and Capex'!E143 -> 202 | AD10: ='Assets and Capex'!F143 -> -19 | AE10: ='Assets and Capex'!G143 -> 479 | AH10: 1 | AI10: 2 | AJ10: 1036.994 | AK10: 520 | AL10: 65 | AM10: 1408.025 | AO10: 0.25 | AP10: 0.5 | AQ10: 259.2485 | AR10: 130 | AS10: 16.25 | AT10: 352.00625
D11: Operating profit | E11: =Profitability!B7 -> -669.2 | F11: =Profitability!C7 -> -340.7 | G11: =Profitability!D7 -> -676.8 | H11: =Profitability!E7 -> -351.5 | I11: =Profitability!F7 -> 186.8 | J11: =Profitability!G7 -> -317.7 | L11: =Profitability!B16 -> 562 | M11: =Profitability!C16 -> 573 | N11: =Profitability!D16 -> 784 | O11: =Profitability!E16 -> 824 | P11: =Profitability!F16 -> 792 | Q11: =Profitability!G16 -> 768 | S11: =Profitability!B24 -> 308.091 | T11: =Profitability!C24 -> 362.403 | U11: =Profitability!D24 -> 78.342 | V11: =Profitability!E24 -> 360.319 | W11: =Profitability!F24 -> 175.733 | X11: =Profitability!G24 -> 1125.165 | Z11: =Profitability!B33 -> 633.6 | AA11: =Profitability!C33 -> 1292 | AB11: =Profitability!D33 -> 1455 | AC11: =Profitability!E33 -> 1661 | AD11: =Profitability!F33 -> 1402 | AE11: =Profitability!G33 -> 1589 | AH11: 834.491 | AI11: 1886.703 | AJ11: 1640.542 | AK11: 2493.819 | AL11: 2556.533 | AM11: 3164.465 | AO11: 208.62275 | AP11: 471.67575 | AQ11: 410.1355 | AR11: 623.45475 | AS11: 639.13325 | AT11: 791.11625
D12: Exceptional charges | E12: =Profitability!B9 -> -37.5 | F12: =Profitability!C9 -> -4 | G12: =Profitability!D9 -> -114.9 | H12: =Profitability!E9 -> -6.1 | I12: =Profitability!F9 -> 534.2 | J12: =Profitability!G9 -> -137 | S12: =Profitability!B26 -> 0 | T12: =Profitability!C26 -> 0 | U12: =Profitability!D26 -> -315.993 | V12: =Profitability!E26 -> 131.855 | W12: =Profitability!F26 -> 0 | X12: =Profitability!G26 -> 1078.2 | AH12: -37.5 | AI12: -4 | AJ12: -430.893 | AK12: 125.755 | AL12: 534.2 | AM12: 941.2 | AO12: -18.75 | AP12: -2 | AQ12: -215.4465 | AR12: 62.8775 | AS12: 267.1 | AT12: 470.6
D13: Amortisation of spectrum | E13: =Profitability!B10 -> 391.9 | F13: =Profitability!C10 -> 391.9 | G13: =Profitability!D10 -> 402.1 | H13: =Profitability!E10 -> 410.3 | I13: =Profitability!F10 -> 433.3 | J13: =Profitability!G10 -> 334.9 | L13: =Profitability!B18 -> 145 | M13: =Profitability!C18 -> 145 | N13: =Profitability!D18 -> 152 | O13: =Profitability!E18 -> 158 | P13: =Profitability!F18 -> 171 | Q13: =Profitability!G18 -> 193 | S13: =Profitability!B27 -> 0 | T13: =Profitability!C27 -> 0 | U13: =Profitability!D27 -> 0 | V13: =Profitability!E27 -> 0 | W13: =Profitability!F27 -> 0 | X13: =Profitability!G27 -> 0 | Z13: =Profitability!B35 -> 368 | AA13: =Profitability!C35 -> 104 | AB13: =Profitability!D35 -> 104 | AC13: =Profitability!E35 -> 129 | AD13: =Profitability!F35 -> 134 | AE13: =Profitability!G35 -> 150 | AH13: 904.9 | AI13: 640.9 | AJ13: 658.1 | AK13: 697.3 | AL13: 738.3 | AM13: 677.9 | AO13: 226.225 | AP13: 160.225 | AQ13: 164.525 | AR13: 174.325 | AS13: 184.575 | AT13: 169.475
D15: Operating profit excluding amortisation | E15: =E11+E13 -> -277.3 | F15: 51.2 | G15: -274.7 | H15: 58.8 | I15: 620.1 | J15: 17.2 | L15: =L11+L13 -> 707 | M15: 718 | N15: 936 | O15: 982 | P15: 963 | Q15: 961 | S15: =S11+S13 -> 308.091 | T15: 362.403 | U15: 78.342 | V15: 360.319 | W15: 175.733 | X15: 1125.165 | Z15: =Z11+Z13 -> 1001.6 | AA15: 1396 | AB15: 1559 | AC15: 1790 | AD15: 1536 | AE15: 1739 | AH15: =E15+L15+S15+Z15 -> 1739.391 | AI15: 2527.603 | AJ15: 2298.642 | AK15: 3191.119 | AL15: 3294.833 | AM15: 3842.365 | AO15: =AVERAGE(E15,L15,S15,Z15) -> 434.84775 | AP15: 631.90075 | AQ15: 574.6605 | AR15: 797.77975 | AS15: 823.70825 | AT15: 960.59125
D17: Tangible assets | E17: ='Assets and Capex'!B14 -> 3232.1 | F17: ='Assets and Capex'!C14 -> 3148.7 | G17: ='Assets and Capex'!D14 -> 3040.7 | H17: ='Assets and Capex'!E14 -> 3965.3 | I17: ='Assets and Capex'!F14 -> 3969 | J17: ='Assets and Capex'!G14 -> 3711.4 | L17: ='Assets and Capex'!B50 -> 2472 | M17: ='Assets and Capex'!C50 -> 2541 | N17: ='Assets and Capex'!D50 -> 2678 | O17: ='Assets and Capex'!E50 -> 3440 | P17: ='Assets and Capex'!F50 -> 3412 | Q17: ='Assets and Capex'!G50 -> 3842 | S17: ='Assets and Capex'!B92 -> 1542.47 | T17: ='Assets and Capex'!C92 -> 1640.649 | U17: ='Assets and Capex'!D92 -> 1768.88 | V17: ='Assets and Capex'!E92 -> 2378.043 | W17: ='Assets and Capex'!F92 -> 2434.449 | X17: ='Assets and Capex'!G92 -> 2552.926 | Z17: ='Assets and Capex'!B126 -> 2486 | AA17: ='Assets and Capex'!C126 -> 2695 | AB17: ='Assets and Capex'!D126 -> 2856 | AC17: ='Assets and Capex'!E126 -> 4149 | AD17: ='Assets and Capex'!F126 -> 3993 | AE17: ='Assets and Capex'!G126 -> 3905 | AH17: =E17+L17+S17+Z17 -> 9732.57 | AI17: 10025.349 | AJ17: 10343.58 | AK17: 13932.343 | AL17: 13808.449 | AM17: 14011.326 | AO17: =AVERAGE(E17,L17,S17,Z17) -> 2433.1425 | AP17: 2506.33725 | AQ17: 2585.895 | AR17: 3483.08575 | AS17: 3452.11225 | AT17: 3502.8315
D18: Other assets | E18: ='Assets and Capex'!B8 -> 430.5 | F18: ='Assets and Capex'!C8 -> 437.4 | G18: ='Assets and Capex'!D8 -> 430 | H18: ='Assets and Capex'!E8 -> 419.2 | I18: ='Assets and Capex'!F8 -> 431.2 | J18: ='Assets and Capex'!G8 -> 489.8 | L18: ='Assets and Capex'!B45+'Assets and Capex'!B46+'Assets and Capex'!B51 -> 511 | M18: ='Assets and Capex'!C45+'Assets and Capex'!C46+'Assets and Capex'!C51 -> 570 | N18: ='Assets and Capex'!D45+'Assets and Capex'!D46+'Assets and Capex'!D51 -> 771 | O18: ='Assets and Capex'!E45+'Assets and Capex'!E46+'Assets and Capex'!E51 -> 564 | P18: ='Assets and Capex'!F45+'Assets and Capex'!F46+'Assets and Capex'!F51 -> 440 | Q18: ='Assets and Capex'!G45+'Assets and Capex'!G46+'Assets and Capex'!G51 -> 682 | S18: ='Assets and Capex'!B84+'Assets and Capex'!B85+'Assets and Capex'!B86 -> 215.698 | T18: ='Assets and Capex'!C84+'Assets and Capex'!C85+'Assets and Capex'!C86 -> 229.864 | U18: ='Assets and Capex'!D84+'Assets and Capex'!D85+'Assets and Capex'!D86 -> 219.664 | V18: ='Assets and Capex'!E84+'Assets and Capex'!E85+'Assets and Capex'!E86 -> 261.971 | W18: ='Assets and Capex'!F84+'Assets and Capex'!F85+'Assets and Capex'!F86 -> 515.267 | X18: ='Assets and Capex'!G84+'Assets and Capex'!G85+'Assets and Capex'!G86 -> 675.467 | Z18: ='Assets and Capex'!B119+'Assets and Capex'!B120+'Assets and Capex'!B130+'Assets and Capex'!B131+'Assets and Capex'!B132 -> 399 | AA18: ='Assets and Capex'!C119+'Assets and Capex'!C120+'Assets and Capex'!C130+'Assets and Capex'!C131+'Assets and Capex'!C132 -> 440 | AB18: ='Assets and Capex'!D119+'Assets and Capex'!D120+'Assets and Capex'!D130+'Assets and Capex'!D131+'Assets and Capex'!D132 -> 783 | AC18: ='Assets and Capex'!E119+'Assets and Capex'!E120+'Assets and Capex'!E130+'Assets and Capex'!E131+'Assets and Capex'!E132 -> 802 | AD18: ='Assets and Capex'!F119+'Assets and Capex'!F120+'Assets and Capex'!F130+'Assets and Capex'!F131+'Assets and Capex'!F132 -> 888 | AE18: ='Assets and Capex'!G119+'Assets and Capex'!G120+'Assets and Capex'!G130+'Assets and Capex'!G131+'Assets and Capex'!G132 -> 990 | AH18: 1556.198 | AI18: 1677.264 | AJ18: 2203.664 | AK18: 2047.171 | AL18: 2274.467 | AM18: 2837.267 | AO18: 389.0495 | AP18: 419.316 | AQ18: 550.916 | AR18: 511.79275 | AS18: 568.61675 | AT18: 709.31675
D19: Spectrum | E19: ='Assets and Capex'!B7 -> 2438.9 | F19: ='Assets and Capex'!C7 -> 2047 | G19: ='Assets and Capex'!D7 -> 2004.1 | H19: ='Assets and Capex'!E7 -> 1589.2 | I19: ='Assets and Capex'!F7 -> 1155.9 | J19: ='Assets and Capex'!G7 -> 1022 | L19: ='Assets and Capex'!B44 -> 1075 | M19: ='Assets and Capex'!C44 -> 930 | N19: ='Assets and Capex'!D44 -> 984 | O19: ='Assets and Capex'!E44 -> 1144 | P19: ='Assets and Capex'!F44 -> 1057 | Q19: ='Assets and Capex'!G44 -> 1311 | S19: ='Assets and Capex'!B83 -> 2980.248 | T19: ='Assets and Capex'!C83 -> 2982.248 | U19: ='Assets and Capex'!D83 -> 3150.042 | V19: ='Assets and Capex'!E83 -> 3150.042 | W19: ='Assets and Capex'!F83 -> 3150 | X19: ='Assets and Capex'!G83 -> 3430.067 | Z19: ='Assets and Capex'!B118 -> 1875 | AA19: ='Assets and Capex'!C118 -> 1771 | AB19: ='Assets and Capex'!D118 -> 1971 | AC19: ='Assets and Capex'!E118 -> 2044 | AD19: ='Assets and Capex'!F118 -> 1892 | AE19: ='Assets and Capex'!G118 -> 2221 | AH19: 8369.148 | AI19: 7730.248 | AJ19: 8109.142 | AK19: 7927.242 | AL19: 7254.9 | AM19: 7984.067 | AO19: 2092.287 | AP19: 1932.562 | AQ19: 2027.2855 | AR19: 1981.8105 | AS19: 1813.725 | AT19: 1996.01675
D20: Goodwill | E20: ='Assets and Capex'!B6 -> 360 | F20: ='Assets and Capex'!C6 -> 360 | G20: ='Assets and Capex'!D6 -> 360 | H20: ='Assets and Capex'!E6 -> 360 | I20: ='Assets and Capex'!F6 -> 309.6 | J20: ='Assets and Capex'!G6 -> 309.6 | L20: ='Assets and Capex'!B43 -> 2377 | M20: ='Assets and Capex'!C43 -> 2377 | N20: ='Assets and Capex'!D43 -> 2377 | O20: ='Assets and Capex'!E43 -> 2377 | P20: ='Assets and Capex'!F43 -> 2377 | Q20: ='Assets and Capex'!G43 -> 0 | Z20: 6430 | AA20: =Z20 -> 6430 | AB20: =AA20 -> 6430 | AC20: =AB20 -> 6430 | AD20: =AC20 -> 6430 | AE20: =AD20 -> 6430 | AF20: Taken from BT annual report - total goodwill on EE purchase from 2016 | AH20: 9167 | AI20: 9167 | AJ20: 9167 | AK20: 9167 | AL20: 9116.6 | AM20: 6739.6 | AO20: 3055.666667 | AP20: 3055.666667 | AQ20: 3055.666667 | AR20: 3055.666667 | AS20: 3038.866667 | AT20: 2246.533333
D22: Current value of spectrum (inc 5G) | J22: ='Spectrum valuation'!T16 -> 3108.387702 | Q22: ='Spectrum valuation'!T29 -> 3043.40708 | X22: ='Spectrum valuation'!T42 -> 2851.85443 | AE22: ='Spectrum valuation'!T54 -> 3810.556903 | AM22: =J22+Q22+X22+AE22 -> 12814.20611 | AT22: =AVERAGE(J22,Q22,X22,AE22) -> 3203.551529
A24: Various inputs for the capital employed
A25: Spectrum values all excluding 5G
D26: Fixed assets | H26: =H17+H18 -> 4384.5 | I26: 4400.2 | J26: 4201.2 | O26: =O17+O18 -> 4004 | P26: 3852 | Q26: 4524 | V26: =V17+V18 -> 2640.014 | W26: 2949.716 | X26: 3228.393 | AC26: =AC17+AC18 -> 4951 | AD26: 4881 | AE26: 4895 | AK26: =H26+O26+V26+AC26 -> 15979.514 | AL26: 16082.916 | AM26: 16848.593 | AR26: =AVERAGE(H26,O26,V26,AC26) -> 3994.8785 | AS26: 4020.729 | AT26: 4212.14825
D27: Spectrum: net book value inc 5G | H27: ='Assets and Capex'!E37 -> 1589.2 | I27: ='Assets and Capex'!F37 -> 1155.9 | J27: ='Assets and Capex'!G37 -> 1022 | O27: ='Assets and Capex'!E77 -> 1144 | P27: ='Assets and Capex'!F77 -> 1057 | Q27: ='Assets and Capex'!G77 -> 1311 | V27: ='Assets and Capex'!E113 -> 3150.042 | W27: ='Assets and Capex'!F113 -> 3150 | X27: ='Assets and Capex'!G113 -> 3430.067 | AC27: ='Assets and Capex'!E153 -> 2044 | AD27: ='Assets and Capex'!F153 -> 1892 | AE27: ='Assets and Capex'!G153 -> 2221 | AK27: 7927.242 | AL27: 7254.9 | AM27: 7984.067 | AR27: 1981.8105 | AS27: 1813.725 | AT27: 1996.01675
D28: Spectrum: current value no amortisation | H28: =J22 -> 3108.387702 | I28: =H28 -> 3108.387702 | J28: =I28 -> 3108.387702 | O28: =Q22 -> 3043.40708 | P28: =O28 -> 3043.40708 | Q28: =P28 -> 3043.40708 | V28: =X22 -> 2851.85443 | W28: =V28 -> 2851.85443 | X28: =W28 -> 2851.85443 | AC28: =AE22 -> 3810.556903 | AD28: =AC28 -> 3810.556903 | AE28: =AD28 -> 3810.556903 | AK28: 12814.20611 | AL28: 12814.20611 | AM28: 12814.20611 | AR28: 3203.551529 | AS28: 3203.551529 | AT28: 3203.551529
D29: Goodwill | H29: =H20 -> 360 | I29: 309.6 | J29: 309.6 | O29: =O20 -> 2377 | P29: 2377 | Q29: 0 | V29: =V20 -> 0 | W29: 0 | X29: 0 | AC29: =AC20 -> 6430 | AD29: 6430 | AE29: 6430 | AK29: 9167 | AL29: 9116.6 | AM29: 6739.6 | AR29: 2291.75 | AS29: 2279.15 | AT29: 1684.9
A31: ROCE calculations - Capital employed is based on average
D33: Accounting ROCE, adj for exceptionals | H33: =(H11-H12)/(AVERAGE(G26:H26)+AVERAGE(G27:H27)+AVERAGE(G29:H29)) -> -0.05453368489 | I33: =(I11-I12)/(AVERAGE(H26:I26)+AVERAGE(H27:I27)+AVERAGE(H29:I29)) -> -0.05695362067 | J33: =(J11-J12)/(AVERAGE(I26:J26)+AVERAGE(I27:J27)+AVERAGE(I29:J29)) -> -0.03170592622 | O33: =(O11-O12)/(AVERAGE(N26:O26)+AVERAGE(N27:O27)+AVERAGE(N29:O29)) -> 0.1095016611 | P33: =(P11-P12)/(AVERAGE(O26:P26)+AVERAGE(O27:P27)+AVERAGE(O29:P29)) -> 0.106947539 | Q33: =(Q11-Q12)/(AVERAGE(P26:Q26)+AVERAGE(P27:Q27)+AVERAGE(P29:Q29)) -> 0.1170642482 | V33: =(V11-V12)/(AVERAGE(U26:V26)+AVERAGE(U27:V27)+AVERAGE(U29:V29)) -> 0.03945799488 | W33: =(W11-W12)/(AVERAGE(V26:W26)+AVERAGE(V27:W27)+AVERAGE(V29:W29)) -> 0.02956036499 | X33: =(X11-X12)/(AVERAGE(W26:X26)+AVERAGE(W27:X27)+AVERAGE(W29:X29)) -> 0.007362337688 | AC33: =(AC11-AC12)/(AVERAGE(AB26:AC26)+AVERAGE(AB27:AC27)+AVERAGE(AB29:AC29)) -> 0.1237243948 | AD33: =(AD11-AD12)/(AVERAGE(AC26:AD26)+AVERAGE(AC27:AD27)+AVERAGE(AC29:AD29)) -> 0.1053026889 | AE33: =(AE11-AE12)/(AVERAGE(AD26:AE26)+AVERAGE(AD27:AE27)+AVERAGE(AD29:AE29)) -> 0.1188081797 | AR33: =AVERAGE(H33,O33,V33,AC33) -> 0.05453759148 | AS33: 0.04621424305 | AT33: 0.05288220984 | AU33: =AVERAGE(AR33:AT33) -> 0.05121134812
D34: Accounting ROCE, adj for exceptionals and excluding goodwill | H34: =(H11-H12)/(AVERAGE(G26:H26)+AVERAGE(G27:H27)) -> -0.05782011149 | I34: =(I11-I12)/(AVERAGE(H26:I26)+AVERAGE(H27:I27)) -> -0.0602612361 | J34: =(J11-J12)/(AVERAGE(I26:J26)+AVERAGE(I27:J27)) -> -0.03352722347 | O34: =(O11-O12)/(AVERAGE(N26:O26)+AVERAGE(N27:O27)) -> 0.1600621601 | P34: =(P11-P12)/(AVERAGE(O26:P26)+AVERAGE(O27:P27)) -> 0.1575022372 | Q34: =(Q11-Q12)/(AVERAGE(P26:Q26)+AVERAGE(P27:Q27)) -> 0.1429635145 | V34: =(V11-V12)/(AVERAGE(U26:V26)+AVERAGE(U27:V27)) -> 0.03945799488 | W34: =(W11-W12)/(AVERAGE(V26:W26)+AVERAGE(V27:W27)) -> 0.02956036499 | X34: =(X11-X12)/(AVERAGE(W26:X26)+AVERAGE(W27:X27)) -> 0.007362337688 | AC34: =(AC11-AC12)/(AVERAGE(AB26:AC26)+AVERAGE(AB27:AC27)) -> 0.2374553252 | AD34: =(AD11-AD12)/(AVERAGE(AC26:AD26)+AVERAGE(AC27:AD27)) -> 0.2036606624 | AE34: =(AE11-AE12)/(AVERAGE(AD26:AE26)+AVERAGE(AD27:AE27)) -> 0.2288141695 | AR34: 0.09478884217 | AS34: 0.08261550714 | AT34: 0.08640319956 | AU34: =AVERAGE(AR34:AT34) -> 0.08793584962
D36: Economic ROCE | H36: =(H15-H12)/(AVERAGE(G26:H26)+AVERAGE(G28:H28)) -> 0.008661547134 | I36: =(I15-I12)/(AVERAGE(H26:I26)+AVERAGE(H28:I28)) -> 0.01145220689 | J36: =(J15-J12)/(AVERAGE(I26:J26)+AVERAGE(I28:J28)) -> 0.02081227895 | O36: =(O15-O12)/(AVERAGE(N26:O26)+AVERAGE(N28:O28)) -> 0.1393420287 | P36: =(P15-P12)/(AVERAGE(O26:P26)+AVERAGE(O28:P28)) -> 0.1381356717 | Q36: =(Q15-Q12)/(AVERAGE(P26:Q26)+AVERAGE(P28:Q28)) -> 0.1328925324 | V36: =(V15-V12)/(AVERAGE(U26:V26)+AVERAGE(U28:V28)) -> 0.04160041394 | W36: =(W15-W12)/(AVERAGE(V26:W26)+AVERAGE(V28:W28)) -> 0.03112125583 | X36: =(X15-X12)/(AVERAGE(W26:X26)+AVERAGE(W28:X28)) -> 0.00790535599 | AC36: =(AC15-AC12)/(AVERAGE(AB26:AC26)+AVERAGE(AB28:AC28)) -> 0.2043015893 | AD36: =(AD15-AD12)/(AVERAGE(AC26:AD26)+AVERAGE(AC28:AD28)) -> 0.176014437 | AE36: =(AE15-AE12)/(AVERAGE(AD26:AE26)+AVERAGE(AD28:AE28)) -> 0.1999182186 | AR36: =AVERAGE(H36,O36,V36,AC36) -> 0.09847639478 | AS36: =AVERAGE(I36,P36,W36,AD36) -> 0.08918089286 | AT36: =AVERAGE(J36,Q36,X36,AE36) -> 0.09038209648 | AU36: =AVERAGE(AR36:AT36) -> 0.09267979471
A38: ROCE summaries
D40: Accounting ROCE, adj for exceptionals | H40: 2019 | I40: 2020 | J40: 2021
D41: EE | H41: =AC33 -> 0.1237243948 | I41: =AD33 -> 0.1053026889 | J41: =AE33 -> 0.1188081797
D42: Virgin Media O2 | H42: =O33 -> 0.1095016611 | I42: =P33 -> 0.106947539 | J42: =Q33 -> 0.1170642482
D43: Vodafone | H43: =H33 -> -0.05453368489 | I43: =I33 -> -0.05695362067 | J43: =J33 -> -0.03170592622
D44: Three | H44: =V33 -> 0.03945799488 | I44: =W33 -> 0.02956036499 | J44: =X33 -> 0.007362337688
D45: Simple average | H45: =AR33 -> 0.05453759148 | I45: =AS33 -> 0.04621424305 | J45: =AT33 -> 0.05288220984 | K45: =AVERAGE(H45:J45) -> 0.05121134812
D46: WACC - MCT | H46: 0.091 | I46: 0.091 | J46: 0.078
D48: Accounting ROCE, adj for exceptionals and excluding goodwill
D49: Simple average | H49: =AR34 -> 0.09478884217 | I49: =AS34 -> 0.08261550714 | J49: =AT34 -> 0.08640319956
D52: Economic ROCE | H52: 2019 | I52: 2020 | J52: 2021
D53: EE | H53: =AC36 -> 0.2043015893 | I53: =AD36 -> 0.176014437 | J53: =AE36 -> 0.1999182186
D54: Virgin Media O2 | H54: =O36 -> 0.1393420287 | I54: =P36 -> 0.1381356717 | J54: =Q36 -> 0.1328925324
D55: Vodafone | H55: =H36 -> 0.008661547134 | I55: =I36 -> 0.01145220689 | J55: =J36 -> 0.02081227895
D56: Three | H56: =V36 -> 0.04160041394 | I56: =W36 -> 0.03112125583 | J56: =X36 -> 0.00790535599
D57: Simple average | H57: =AR36 -> 0.09847639478 | I57: =AS36 -> 0.08918089286 | J57: =AT36 -> 0.09038209648 | K57: =AVERAGE(H57:J57) -> 0.09267979471
D58: Cost of capital, MCT | H58: 0.091 | I58: 0.091 | J58: 0.078 | K58: =AVERAGE(H58:J58) -> 0.08666666667
